[Event "10th Floripa Open 2024"]
[Site "Florianopolis"]
[Date "2024.01.25"]
[Round "6.5"]
[White "Galego, Luis"]
[Black "Ticona Rocabado, Licael Roderick"]
[Result "1/2-1/2"]
[ECO "D45"]
[WhiteElo "2468"]
[BlackElo "2350"]
[Annotator "TA"]
[PlyCount "77"]
[EventDate "2024.01.10"]
[EventType "swiss"]
[EventCountry "BRA"]
[SourceTitle "playchess.com"]
[Source "ChessBase"]
[SourceQuality "1"]
[TimeControl "5400+30"]

{[%evp 14,77,-13,-21,0,0,2,0,0,0,0,0,0,0,0,0,-8,-16,41,36,31,28,37,36,39,39,47,38,31,29,28,33,47,27,20,20,51,51,54,41,29,35,41,42,42,41,41,41,55,47,228,57,61,59,60,30,64,47,52,58,42,35,617,279,577,0]} 1. d4 {[%emt 0:00:04]} d5 {[%emt 0:06:11]} 2. c4 {[%emt 0:00:08]} e6 {[%emt 0:00:12]} 3. Nf3 {[%emt 0:00:19]} Nf6 {[%emt 0:00:25]} 4. Nc3 {[%emt 0:00:44]} c6 {[%emt 0:00:13]} 5. e3 {[%emt 0:03:54]} Bd6 {[%emt 0:00:25]} 6. Qc2 {[%emt 0:00:43]} O-O {[%emt 0:00:34]} 7. a3 {[%emt 0:00:16]} Nbd7 {[%emt 0:00:55]} 8. b4 {[%emt 0:03:17]} e5 {[%emt 0:02:03]} 9. cxd5 {[%emt 0:02:46]} cxd5 {[%emt 0:00:18]} 10. Nb5 {[%emt 0:00:59]} Bb8 {[%emt 0:00:09] The position is equal.} 11. dxe5 {[%emt 0:00:43]} Nxe5 {[%emt 0:00:07]} 12. Nxe5 {[%emt 0:00:34]} Bxe5 {[%emt 0:00:06]} 13. Bb2 {[%emt 0:00:28]} Bf5 {[%emt 0:03:26]} 14. Qb3 {[%emt 0:02:16]} Bxb2 {[%emt 0:04:52]} 15. Qxb2 {[%emt 0:01:43]} Ne4 {[%emt 0:01:31]} (15... Be4 $11) 16. Be2 $14 {[%emt 0:03:17]} a6 {[%emt 0:02:38]} 17. Nd4 {[%emt 0:00:10]} Qf6 {[%emt 0:00:06]} 18. O-O {[%emt 0:01:23]} Rac8 {[%emt 0:00:06]} 19. Rac1 {[%emt 0:11:26]} Nd6 {[%emt 0:01:02]} 20. Rc5 {[%emt 0:02:22]} Be6 {[%emt 0:00:27]} 21. a4 {[%emt 0:04:22]} Ne4 {[%emt 0:00:34]} 22. Rxc8 {[%emt 0:01:45]} Rxc8 {[%emt 0:00:25]} 23. Bd3 {[%emt 0:00:26]} Bd7 {[%emt 0:02:51]} 24. a5 {[%emt 0:05:23]} Nd6 {[%emt 0:03:51]} 25. Rc1 {[%emt 0:01:21]} Nc4 {[%emt 0:01:03]} 26. Qe2 {[%emt 0:05:48][%cal Oe2h5]} Qd6 {[%emt 0:01:58]} 27. Qe1 {[%emt 0:47:23]} (27. Bxc4 $2 Qxb4 28. Qa2 dxc4 $19 (28... Rxc4 29. Rb1 $17)) 27... Ne5 {[%emt 1:07:32] [#] aiming for ...Rxc1.} 28. Rxc8+ Bxc8 29. Qc3 Bd7 {[%emt 0:01:00] Threatens to win with ...Nxd3.} 30. Be2 {[%emt 0:01:30]} Kf8 {[%emt 0:00:30]} 31. h3 {[%emt 0:00:30]} Bc6 $2 {[%emt 0:00:30]} (31... Nc6 $14) 32. Nb3 $2 (32. b5 $18 axb5 33. Nf5 (33. Bxb5 Bd7 $16) (33. Nxb5 Bxb5 34. Bxb5 Nc4 $16)) 32... Nd7 {[%emt 0:00:30]} 33. Qd4 {[%emt 0:01:00] White is more active.} Ba4 {[%emt 0:00:00]} 34. Nc1 {[%emt 0:00:30]} Ne5 {[%emt 0:01:00]} 35. Nd3 {[%emt 0:00:30]} Nc6 {[%emt 0:00:30]} 36. Qb6 {[%cal Od3c5] Nc5! is the strong threat.} Bb5 {[%emt 0:00:30]} 37. Qxb7 {[%emt 0:01:00]} Ba4 $2 {[%emt 0:00:30][%mdl 8192]} (37... Qb8 $14 38. Qxb8+ Nxb8) 38. Qb6 (38. Nc5 $142 Nd8 39. Qxa6 Qxa6 40. Bxa6) 38... Bb5 {[%emt 0:00:30] [#]} (38... Qb8 {is a better defense.} 39. Qxa6 Bb5) 39. Qb7 $2 {Weighted Error Value: White=0.29 (precise) /Black=0.43.  Loses game:     	---       	Black=2      Missed win:     	White=1     	---        Mistake:       	White=1     	Black=2      Inaccurate:     	White=1     	Black=2      OK:         	White=16    	Black=8      Best:        	White=1     	Black=2} (39. Ne5 $1 $18 Ke7 40. Nxc6+ (40. Bxb5 Nxe5 41. Qb7+ Ke6 $18) 40... Bxc6 41. Qxa6 (41. Bxa6 Ba4 $18) 41... Qxb4 42. Qxc6 Qxa5 43. Qb7+ Kf8 44. Qb8+ Ke7 45. Qe5+ Kf8 46. Qd6+ Ke8 47. Bf3) 1/2-1/2

[Event "10th Floripa Open 2024"]
[Site "Florianopolis"]
[Date "2024.01.25"]
[Round "6.6"]
[White "Umetsubo, Cesar Hidemitsu"]
[Black "Flores Quillas, Diego Saul Rodri"]
[Result "1/2-1/2"]
[ECO "E34"]
[WhiteElo "2349"]
[BlackElo "2429"]
[Annotator "TA"]
[PlyCount "95"]
[EventDate "2024.01.10"]
[EventType "swiss"]
[EventCountry "BRA"]
[SourceTitle "playchess.com"]
[Source "ChessBase"]
[SourceQuality "1"]
[TimeControl "5400+30"]

{[%evp 11,95,32,23,25,32,25,26,15,17,14,14,0,11,5,13,8,31,31,24,33,27,18,41,40,36,35,39,17,42,31,23,32,32,32,33,6,8,0,0,0,0,0,0,0,0,0,0,0,0,0,0,0,0,0,0,0,0,0,0,0,0,0,0,0,0,0,0,0,0,0,0,0,0,0,0,0,0,0,0,0,0,0,0,0,0,0]} 1. d4 {[%emt 0:02:50]} Nf6 {[%emt 0:11:01]} 2. c4 {[%emt 0:00:06]} e6 {[%emt 0:00:06]} 3. Nc3 {[%emt 0:00:08]} Bb4 {[%emt 0:00:03]} 4. Qc2 {[%emt 0:00:12]} d5 {[%emt 0:00:20]} 5. cxd5 {[%emt 0:00:10]} Qxd5 {[%emt 0:00:24]} 6. Nf3 {[%emt 0:00:23][%cal Bg1f3,Bf3h4,Bh4g2,Bg2f4][%mdl 32]} O-O {[%emt 0:00:51]} 7. Bd2 {[%emt 0:11:36] E34: Nimzo-Indian: Classical: 4...d5.} Bxc3 {[%emt 0:00:52]} 8. Bxc3 {[%emt 0:00:16]} b6 {[%emt 0:00:58]} 9. g3 {[%emt 0:01:02] White has an edge.} Bb7 {[%emt 0:01:12]} 10. Bg2 {[%emt 0:00:16]} Qh5 {[%emt 0:01:32] [#]} 11. Nh4 $146 {[%emt 0:07:13]} ({Predecessor:} 11. O-O Be4 12. Qd2 Nbd7 13. Rac1 Rac8 14. b3 Rfd8 15. Rfd1 h6 16. Bb2 Qb5 17. Qe3 {0-1 Moreno Ruiz,J (2486)-Almagro Llamas,P (2500) Madrid-ch final 2014 (4)}) 11... Bxg2 {[%emt 0:00:57]} 12. Nxg2 {[%emt 0:00:04]} Nbd7 {[%emt 0:04:49]} 13. Nf4 {[%emt 0:01:33]} Qf5 {[%emt 0:05:05]} 14. Qxf5 {[%emt 0:06:01]} exf5 {[%emt 0:01:52]} 15. f3 {[%emt 0:00:58]} Rfe8 {[%emt 0:00:19]} 16. Kf2 {[%emt 0:00:27]} Rac8 {[%emt 0:03:35]} 17. Rac1 {[%emt 0:01:42]} c6 {[%emt 0:00:14]} 18. Rc2 {[%emt 0:04:44]} Nf8 {[%emt 0:16:31]} 19. Nd3 {[%emt 0:20:35]} Ne6 {[%emt 0:02:23]} 20. e3 {[%emt 0:01:13]} c5 {[%emt 0:08:05]} 21. dxc5 {[%emt 0:01:40]} Nxc5 {[%emt 0:00:03]} 22. Nxc5 {[%emt 0:07:15]} Rxc5 {[%emt 0:00:05]} 23. Rcc1 {[%emt 0:08:09]} Rec8 {[%emt 0:02:20] The position is equal.} 24. Bd2 {[%emt 0:00:17]} Rc2 {[%emt 0:00:38]} 25. Ke2 {[%emt 0:00:29]} h5 {[%emt 0:03:13]} 26. h4 {[%emt 0:03:04]} Nd7 {[%emt 0:01:53]} 27. Rxc2 {[%emt 0:04:49]} Rxc2 $11 {[%emt 0:00:18][%mdl 4096] Endgame KRB-KRN} 28. Rb1 {[%emt 0:00:22]} f6 {[%emt 0:01:40]} 29. Kd3 {[%emt 0:00:54]} Rc6 {[%emt 0:00:16]} 30. Rc1 {[%emt 0:03:52]} Rxc1 {[%emt 0:00:07]} 31. Bxc1 {[%emt 0:00:01] KB-KN} Kf7 {[%emt 0:00:01]} 32. b3 {[%emt 0:02:22]} Ke6 {[%emt 0:00:11]} 33. Bb2 {[%emt 0:00:06]} Ne5+ {[%emt 0:07:57]} 34. Bxe5 {[%emt 0:00:23]} Kxe5 {[%emt 0:00:04] KP-KP} 35. Kc4 {[%emt 0:00:52]} g5 {[%emt 0:13:54]} 36. Kd3 {[%emt 0:01:49]} Kd5 {[%emt 0:01:06]} 37. Kd2 {[%emt 0:04:50]} f4 {[%emt 0:02:48]} 38. gxf4 {[%emt 0:02:03]} ({But not} 38. exf4 gxh4 39. gxh4 Kd4 $17) 38... gxf4 {[%emt 0:00:10]} (38... gxh4 $2 39. Ke1 Ke6 40. e4 $18) 39. Kd3 {[%emt 0:00:59]} (39. exf4 Kd4 40. f5 a6 $19) 39... fxe3 {[%emt 0:00:35]} 40. Kxe3 {[%emt 0:04:45] Black must now prevent Kf4.} Ke5 41. f4+ $1 Kd5 42. Kd3 b5 43. Ke3 a5 (43... b4 $5) 44. Kd3 a4 (44... b4 $5) 45. Ke3 {[%emt 0:00:00]} axb3 (45... f5 $5) 46. axb3 {[%emt 0:00:00]} b4 (46... f5 $5) 47. Kd3 {[%emt 0:00:00]} f5 48. Ke3 {[%emt 0:00:00] Weighted Error Value: White=0.03 (flawless) /Black=0.02 (flawless)} 1/2-1/2

[Event "10th Floripa Open 2024"]
[Site "Florianopolis"]
[Date "2024.01.25"]
[Round "6.7"]
[White "Filgueiras, Nathan Felipe"]
[Black "Do Valle Cardoso, Lucas"]
[Result "1/2-1/2"]
[ECO "A29"]
[WhiteElo "2321"]
[BlackElo "2392"]
[Annotator "TA"]
[PlyCount "70"]
[EventDate "2024.01.10"]
[EventType "swiss"]
[EventCountry "BRA"]
[SourceTitle "playchess.com"]
[Source "ChessBase"]
[SourceQuality "1"]
[TimeControl "5400+30"]

{[%evp 10,70,5,0,27,28,7,11,16,18,24,0,20,-36,0,0,25,26,14,15,28,32,46,23,45,0,24,24,18,27,24,0,0,0,0,-22,-14,-24,-8,-6,-7,-21,0,-45,0,0,0,0,0,0,0,-14,0,-8,0,0,0,0,0,0,0,-27,-16]} 1. c4 {[%emt 0:12:54]} e5 {[%emt 0:00:44]} 2. Nc3 {[%emt 0:00:35]} Nf6 {[%emt 0:00:48]} 3. Nf3 {[%emt 0:00:07]} Nc6 {[%emt 0:00:10]} 4. g3 {[%emt 0:00:17]} d5 {[%emt 0:01:48]} 5. cxd5 {[%emt 0:00:13]} Nxd5 {[%emt 0:00:04]} 6. Bg2 {[%emt 0:00:13][%cal Of3e5]} Nf6 {[%emt 0:00:26] [#]} 7. b4 $1 {[%emt 0:00:43]} Bd6 {[%emt 0:04:01]} 8. b5 {[%emt 0:08:31]} Nd4 {[%emt 0:00:16] The position is equal.} 9. O-O {[%emt 0:03:38]} a6 {[%emt 0:05:59]} 10. Bb2 {[%emt 0:12:31]} O-O {[%emt 0:01:21]} 11. e3 {[%emt 0:04:03]} (11. a4 $11) 11... Nxf3+ {[%emt 0:02:02]} 12. Bxf3 {[%emt 0:00:07]} Re8 {[%emt 0:02:43]} 13. Qc2 {[%emt 0:02:18]} axb5 {[%emt 0:14:12]} 14. Nxb5 {[%emt 0:00:50]} c6 {[%emt 0:00:29]} 15. Nxd6 {[%emt 0:02:02]} Qxd6 {[%emt 0:00:09]} 16. Bg2 {[%emt 0:00:20]} Be6 {[%emt 0:15:45][%cal Oe6d5]} 17. f4 {[%emt 0:05:26]} Nd7 {[%emt 0:00:06]} (17... Bxa2 $2 {perishes.} 18. fxe5 (18. Bxe5 Qe6 $16) 18... Qd7 19. exf6 $18) 18. a4 {[%emt 0:11:47] [#] f5 is the strong threat.} f6 {[%emt 0:01:00]} 19. Be4 {[%emt 0:03:03]} h6 {[%emt 0:02:41]} 20. Bh7+ {[%emt 0:04:20]} Kh8 {[%emt 0:00:07]} 21. Bg6 {[%emt 0:00:03]} Rec8 {[%emt 0:01:42]} 22. d4 {[%emt 0:01:05]} exf4 {[%emt 0:02:47]} 23. Rxf4 {[%emt 0:01:10]} c5 {[%emt 0:02:00]} 24. Qf2 {[%emt 0:03:29]} cxd4 {[%emt 0:03:01]} 25. Rxd4 {[%emt 0:04:09]} Qc5 {[%emt 0:01:32]} 26. Rad1 {[%emt 0:02:17]} Qg5 {[%emt 0:07:12]} 27. Be4 {[%emt 0:01:11] This pair of bishops is nice.} Nc5 {[%emt 0:00:03][%cal Oc5e4]} 28. Bc2 {[%emt 0:02:58]} Bb3 {[%emt 0:01:51]} 29. Bxb3 {[%emt 0:09:02]} (29. h4 $5 Qh5 $8 30. Bxb3 Nxb3 31. Rd6 $11) 29... Nxb3 {[%emt 0:00:02]} 30. Rf4 {[%emt 0:00:12][%cal Rf4f6]} Rd8 {[%emt 0:08:37]} 31. Qf3 {[%emt 0:01:25]} Qg6 {[%emt 0:02:39]} 32. e4 {[%emt 0:01:27]} (32. Rxd8+ Rxd8 33. Bxf6 Nd2 (33... gxf6 34. Rxf6 Nd2 35. Qf4 $11) 34. Qxb7 gxf6) 32... Rxd1+ {[%emt 0:03:21]} 33. Qxd1 {[%emt 0:00:02]} Nc5 {[%emt 0:00:12]} 34. Qd5 {[%emt 0:02:23]} Rc8 {[%emt 0:00:18]} 35. a5 {[%emt 0:00:47]} Rc6 {[%emt 0:07:16] Weighted Error Value: White=0.12 (very precise) /Black=0.10 (very precise) .  Mistake:       	White=1     	---        Inaccurate:     	White=3     	Black=2      OK:         	White=13    	Black=12     Best:        	---       	Black=1} 1/2-1/2

[Event "10th Floripa Open 2024"]
[Site "Florianopolis"]
[Date "2024.01.25"]
[Round "6.8"]
[White "Perez Gormaz, Matias"]
[Black "Ribeiro, Matheus Mendes Domin"]
[Result "1/2-1/2"]
[ECO "A06"]
[WhiteElo "2388"]
[BlackElo "2130"]
[Annotator "RC"]
[PlyCount "149"]
[EventDate "2024.01.10"]
[EventType "swiss"]
[EventCountry "BRA"]
[SourceTitle "playchess.com"]
[Source "ChessBase"]
[SourceQuality "1"]
[TimeControl "5400+30"]

1. Nf3 {[%emt 0:00:27]} d5 {[%emt 0:08:14]} 2. e3 {[%emt 0:00:20]} Nf6 {[%emt 0:00:50]} 3. b3 {[%emt 0:00:16]} c5 {[%emt 0:02:26]} 4. Bb2 {[%emt 0:00:22]} g6 {[%emt 0:03:11]} 5. c4 {[%emt 0:00:53]} Bg7 {[%emt 0:02:35]} 6. cxd5 {[%emt 0:00:11]} O-O {[%emt 0:04:01]} 7. Bxf6 {[%emt 0:01:51]} Bxf6 {[%emt 0:01:33]} 8. Nc3 {[%emt 0:00:08]} e6 {[%emt 0:04:00]} 9. dxe6 {[%emt 0:00:15]} Bxe6 {[%emt 0:00:24]} 10. Rc1 {[%emt 0:00:21]} Nc6 {[%emt 0:06:21]} 11. Ne4 {[%emt 0:11:12]} b6 {[%emt 0:05:30]} 12. Nxf6+ {[%emt 0:01:44]} Qxf6 {[%emt 0:00:07]} 13. Be2 {[%emt 0:00:27]} Rad8 {[%emt 0:01:49]} 14. O-O {[%emt 0:21:11]} Rd6 {[%emt 0:02:34]} 15. Qc2 {[%emt 0:22:01]} Nb4 {[%emt 0:08:54]} 16. Qb1 {[%emt 0:00:25]} Bg4 {[%emt 0:08:43]} 17. a3 {[%emt 0:18:17]} Bxf3 {[%emt 0:10:24]} 18. Bxf3 {[%emt 0:00:21]} Nd3 {[%emt 0:00:08]} 19. Rc2 {[%emt 0:00:53]} Rfd8 {[%emt 0:00:03]} 20. Be2 {[%emt 0:01:49]} Qe6 {[%emt 0:05:30]} 21. f4 {[%emt 0:06:59]} a5 {[%emt 0:05:45]} 22. Rc3 {[%emt 0:01:16]} Qd7 {[%emt 0:00:54]} 23. Rd1 {[%emt 0:01:24]} Qf5 {[%emt 0:06:09]} 24. Qc2 {[%emt 0:01:01]} Qe4 {[%emt 0:01:18]} 25. Rb1 {[%emt 0:01:45]} Kg7 {[%emt 0:03:13]} 26. Kf1 {[%emt 0:04:18]} Kf8 {[%emt 0:01:05]} 27. Rb2 {[%emt 0:01:24]} h5 {[%emt 0:01:10]} 28. Bxd3 {[%emt 0:01:30]} Rxd3 {[%emt 0:00:08]} 29. Rxd3 {[%emt 0:00:04]} Qxd3+ {[%emt 0:03:24]} 30. Qxd3 {[%emt 0:00:03]} Rxd3 {[%emt 0:00:02]} 31. Ke2 {[%emt 0:00:01]} Rd6 {[%emt 0:00:13]} 32. Rc2 {[%emt 0:00:51]} Ke7 {[%emt 0:00:22]} 33. Rc4 {[%emt 0:00:12]} Ke6 {[%emt 0:00:41]} 34. Re4+ {[%emt 0:01:36]} Kd7 {[%emt 0:00:38]} 35. d3 {[%emt 0:00:52]} b5 {[%emt 0:01:48]} 36. Re5 {[%emt 0:00:39]} Rc6 {[%emt 0:01:32]} 37. Kd2 {[%emt 0:00:14]} f6 {[%emt 0:00:46]} 38. Rd5+ {[%emt 0:00:42]} Ke6 {[%emt 0:00:00]} 39. Rd8 {[%emt 0:00:20]} c4 {[%emt 0:00:10]} 40. bxc4 {[%emt 0:00:53]} bxc4 {[%emt 0:00:01]} 41. Ra8 {[%emt 0:00:53]} cxd3 {[%emt 0:00:48]} 42. Kxd3 {[%emt 0:00:02]} Rd6+ {[%emt 0:00:13]} 43. Ke4 {[%emt 0:00:13]} f5+ {[%emt 0:00:23]} 44. Kf3 {[%emt 0:00:02]} Rd5 {[%emt 0:00:07]} 45. Ra6+ {[%emt 0:00:03]} Kf7 {[%emt 0:00:03]} 46. g3 {[%emt 0:00:13]} Rc5 {[%emt 0:00:23]} 47. a4 {[%emt 0:00:05]} Kg7 {[%emt 0:00:26]} 48. Kg2 {[%emt 0:00:31]} Rd5 {[%emt 0:01:20]} 49. Kf3 {[%emt 0:00:04]} Rc5 {[%emt 0:00:05]} 50. h3 {[%emt 0:00:22]} Kf7 {[%emt 0:01:17]} 51. g4 {[%emt 0:01:07]} fxg4+ {[%emt 0:01:25]} 52. hxg4 {[%emt 0:00:02]} g5 {[%emt 0:00:06]} 53. f5 {[%emt 0:02:55]} Re5 {[%emt 0:00:45]} 54. Ra7+ {[%emt 0:00:25]} Kf6 {[%emt 0:00:11]} 55. Ra6+ {[%emt 0:00:57]} Kf7 {[%emt 0:00:04]} 56. e4 {[%emt 0:00:37]} hxg4+ {[%emt 0:00:09]} 57. Ke3 {[%emt 0:00:09]} Rc5 {[%emt 0:00:59]} 58. Ra7+ {[%emt 0:00:23]} Kf6 {[%emt 0:00:14]} 59. Ra6+ {[%emt 0:00:03]} Kf7 {[%emt 0:00:09]} 60. Rg6 {[%emt 0:00:01]} Rc3+ {[%emt 0:01:12]} 61. Kd4 {[%emt 0:00:09]} Ra3 {[%emt 0:00:01]} 62. Rxg5 {[%emt 0:00:09]} Rxa4+ {[%emt 0:00:00]} 63. Ke5 {[%emt 0:00:09]} Rb4 {[%emt 0:00:09]} 64. Rxg4 {[%emt 0:00:19]} Rb5+ {[%emt 0:00:01]} 65. Kf4 {[%emt 0:00:24]} a4 {[%emt 0:00:22]} 66. Rg2 {[%emt 0:01:23]} a3 {[%emt 0:00:38]} 67. e5 {[%emt 0:00:22]} Ra5 {[%emt 0:00:16]} 68. Ra2 {[%emt 0:00:16]} Ra8 {[%emt 0:00:48]} 69. Kg5 {[%emt 0:00:15]} Rg8+ {[%emt 0:00:08]} 70. Kf4 {[%emt 0:00:05]} Ra8 {[%emt 0:00:01]} 71. Kg5 {[%emt 0:00:12]} Rg8+ {[%emt 0:00:04]} 72. Kf4 {[%emt 0:00:20]} Ra8 {[%emt 0:00:09]} 73. Ke4 {[%emt 0:00:24]} Ra4+ {[%emt 0:00:15]} 74. Kf3 {[%emt 0:00:57]} Ra5 {[%emt 0:00:17]} 75. Kf4 {[%emt 0:00:09]} 1/2-1/2

[Event "10th Floripa Open 2024"]
[Site "Florianopolis"]
[Date "2024.01.25"]
[Round "6.9"]
[White "Perdomo, Leandro"]
[Black "Soriano Quispe, Ivan Excender"]
[Result "1/2-1/2"]
[ECO "D36"]
[WhiteElo "2382"]
[BlackElo "2271"]
[Annotator "RC"]
[PlyCount "62"]
[EventDate "2024.01.10"]
[EventType "swiss"]
[EventCountry "BRA"]
[SourceTitle "playchess.com"]
[Source "ChessBase"]
[SourceQuality "1"]
[TimeControl "5400+30"]

1. d4 {[%emt 0:00:03]} d5 {[%emt 0:04:24]} 2. c4 {[%emt 0:00:13]} e6 {[%emt 0:00:16]} 3. Nc3 {[%emt 0:00:03]} c6 {[%emt 0:00:05]} 4. Nf3 {[%emt 0:00:17]} Nf6 {[%emt 0:00:16]} 5. cxd5 {[%emt 0:00:36]} exd5 {[%emt 0:00:21]} 6. Qc2 {[%emt 0:00:07]} Be7 {[%emt 0:00:40]} 7. Bg5 {[%emt 0:00:15]} g6 {[%emt 0:00:17]} 8. e4 {[%emt 0:02:09]} dxe4 {[%emt 0:01:28]} 9. Bxf6 {[%emt 0:00:42]} Bxf6 {[%emt 0:00:08]} 10. Qxe4+ {[%emt 0:00:04]} Qe7 {[%emt 0:01:42]} 11. Bc4 {[%emt 0:00:41]} Bf5 {[%emt 0:04:29]} 12. Qxe7+ {[%emt 0:00:06]} Kxe7 {[%emt 0:01:04]} 13. O-O-O {[%emt 0:00:14]} Nd7 {[%emt 0:02:43]} 14. h3 {[%emt 0:03:11]} h5 {[%emt 0:02:25]} 15. Rhe1+ {[%emt 0:12:37]} Kf8 {[%emt 0:01:02]} 16. Ne4 {[%emt 0:00:05]} Bxe4 {[%emt 0:01:31]} 17. Rxe4 {[%emt 0:00:06]} Nb6 {[%emt 0:05:07]} 18. Bb3 {[%emt 0:00:19]} Kg7 {[%emt 0:06:39]} 19. Ne5 {[%emt 0:18:36]} Nd5 {[%emt 0:00:41]} 20. Bxd5 {[%emt 0:02:39]} cxd5 {[%emt 0:00:06]} 21. Re2 {[%emt 0:00:05]} Rae8 {[%emt 0:02:40]} 22. Rde1 {[%emt 0:06:53]} Re6 {[%emt 0:00:48]} 23. Nf3 {[%emt 0:24:03]} Rc8+ {[%emt 0:06:25]} 24. Kb1 {[%emt 0:00:03]} Rec6 {[%emt 0:01:55]} 25. Ne5 {[%emt 0:00:18]} Re6 {[%emt 0:02:03]} 26. Nf3 {[%emt 0:00:16]} Rb6 {[%emt 0:04:41]} 27. Rc2 {[%emt 0:01:01]} Rxc2 {[%emt 0:02:24]} 28. Kxc2 {[%emt 0:00:03]} Rb4 {[%emt 0:01:10]} 29. Kc3 {[%emt 0:02:20]} Rc4+ {[%emt 0:00:07]} 30. Kd3 {[%emt 0:00:02]} Rc8 {[%emt 0:01:41]} 31. g4 {[%emt 0:02:20]} hxg4 {[%emt 0:46:42]} 1/2-1/2

[Event "10th Floripa Open 2024"]
[Site "Florianopolis"]
[Date "2024.01.25"]
[Round "6.10"]
[White "Federzoni, Enzo"]
[Black "Salinas Herrera, Pablo"]
[Result "0-1"]
[ECO "B81"]
[WhiteElo "2170"]
[BlackElo "2477"]
[Annotator "TA"]
[PlyCount "90"]
[EventDate "2024.01.10"]
[EventType "swiss"]
[EventCountry "BRA"]
[SourceTitle "playchess.com"]
[Source "ChessBase"]
[SourceQuality "1"]
[TimeControl "5400+30"]

{[%evp 15,90,31,51,69,55,39,54,41,33,39,37,0,2,28,29,-20,0,-26,0,0,0,0,24,22,26,-33,-34,-18,-16,-19,0,0,0,0,45,18,32,0,0,0,0,-17,0,-140,-140,-137,-111,-116,-113,-227,-124,-179,-191,-181,-163,-291,-288,-261,-281,-282,-274,-282,-204,-230,-237,-238,-225,-658,-627,-907,-822,-863,-863,-1737,-1665,-1264,-1014]} 1. e4 {[%emt 0:00:06]} c5 {[%emt 0:01:46]} 2. Nf3 {[%emt 0:00:42]} e6 {[%emt 0:00:23]} 3. d4 {[%emt 0:00:06]} cxd4 {[%emt 0:00:05]} 4. Nxd4 {[%emt 0:00:04]} Nf6 {[%emt 0:00:17]} 5. Nc3 {[%emt 0:00:05]} d6 {[%emt 0:00:05]} 6. g4 {[%emt 0:00:05]} h6 {[%emt 0:00:14]} 7. Rg1 {[%emt 0:00:33]} a6 {[%emt 0:02:13]} 8. h4 {[%emt 0:04:07]} Nfd7 {[%emt 0:00:25]} 9. g5 {[%emt 0:02:26]} hxg5 {[%emt 0:01:07]} 10. Bxg5 {[%emt 0:00:10]} Qb6 {[%emt 0:03:31]} 11. Rg3 {[%emt 0:16:14] White is slightly better.} Nc6 {[%emt 0:02:02]} 12. Nb3 {[%emt 0:08:16]} Qc7 {[%emt 0:02:06]} 13. Qd2 {[%emt 0:01:19]} b5 {[%emt 0:03:33]} 14. a3 {[%emt 0:06:25]} Nb6 {[%emt 0:07:07]} 15. Nd4 {[%emt 0:07:18]} (15. O-O-O $142) 15... Nxd4 {[%emt 0:15:06]} 16. Qxd4 {[%emt 0:00:18]} Bd7 {[%emt 0:00:11]} 17. O-O-O {[%emt 0:04:24][%cal Ba1d1,Bd1d4,Bd4h4][%mdl 32]} Rc8 {[%emt 0:01:23]} 18. Be2 {[%emt 0:05:06]} Nc4 {[%emt 0:03:12]} 19. h5 {[%emt 0:08:04][%cal Oh5h6]} Qc5 {[%emt 0:01:15] [#]} 20. h6 {[%emt 0:04:43]} Qxd4 $15 {[%emt 0:02:13]} 21. Rxd4 {[%emt 0:00:01]} g6 {[%emt 0:03:14]} (21... gxh6 $2 {perishes.} 22. Bf6 Rh7 23. Rg8 $18) 22. Bxc4 {[%emt 0:04:30]} bxc4 {[%emt 0:00:09]} 23. Rg1 {[%emt 0:26:58]} Rc6 {[%emt 0:02:08]} 24. Rh1 {[%emt 0:00:00]} f5 {[%emt 0:02:03] Black is weak on the dark squares} 25. exf5 {[%emt 0:00:00]} (25. h7 {seems wilder.} Bg7 26. Rdd1 Bc8 27. f3) 25... gxf5 {[%emt 0:00:13]} 26. Rdh4 {[%emt 0:00:00]} Rh7 {[%emt 0:01:20]} 27. Ne2 {[%emt 0:00:00]} Kf7 {[%emt 0:01:12]} 28. Nd4 {[%emt 0:00:00]} Rc8 {[%emt 0:00:04]} 29. Bd2 {[%emt 0:00:00] [#]} (29. f4 $11) 29... Be7 $1 $17 {[%emt 0:00:13]} 30. Rh5 {[%emt 0:00:00]} Rg8 {[%emt 0:01:00][%cal Of5f4] Against Rg1} 31. Re1 {[%emt 0:00:00]} Rg4 {[%emt 0:04:46]} 32. c3 {[%emt 0:00:00]} (32. Nf3 $17) 32... Bf6 {[%emt 0:00:43]} (32... Kg6 $19 33. Rhh1 e5) 33. f4 {[%emt 0:00:00]} (33. Nf3 $17) 33... Rg6 {[%emt 0:02:23]} 34. Reh1 {[%emt 0:00:00]} Bc8 {[%emt 0:00:04]} 35. Kd1 {[%emt 0:00:00]} (35. Be3 $142) 35... Bb7 $19 {[%emt 0:00:06]} 36. R1h3 {[%emt 0:00:11]} Bg2 {[%emt 0:02:36]} 37. Re3 {[%emt 0:00:01]} Be4 {[%emt 0:00:12]} ({Don't play} 37... Rhxh6 38. Rxh6 Rxh6 39. Rxe6 $17) 38. Reh3 {[%emt 0:00:51]} Be7 {[%emt 0:02:21] A strong pair of Bishops.} 39. Be1 {[%emt 0:00:55]} Bf8 {[%emt 0:00:37]} 40. Ke2 {[%emt 0:00:23]} Rgxh6 {[%emt 0:00:14]} ({Not} 40... Bxh6 41. Bf2 $11) 41. R5h4 {[%emt 0:00:26]} (41. Rxh6 Rxh6 (41... Bxh6 $2 42. Bd2 $19) 42. Rxh6 Bxh6 43. Bd2) 41... Rxh4 {[%emt 0:00:18] Black is clearly winning.} 42. Rxh4 {[%emt 0:00:01]} Rxh4 {[%emt 0:00:42]} 43. Bxh4 {[%emt 0:00:01]} e5 {[%emt 0:00:10]} 44. Nf3 {[%emt 0:00:16]} Bxf3+ {[%emt 0:00:07]} (44... exf4 $2 45. Be1 $19) 45. Kxf3 {[%emt 0:00:01]} Bh6 {[%emt 0:00:08] Weighted Error Value: White=0.53/Black=0.11 (very precise) .  Mistake:       	White=7     	Black=1      Inaccurate:     	White=5     	Black=2      OK:         	White=12    	Black=12     Best:        	White=2     	Black=4      Strong:       	---       	Black=1} 0-1